Cogmind - Beta 17 @@@ ROGUE MODE // 2026.06.25 @ 21:50:08 Player: Petvaria Result: Destroyed by X-77 Beamer with Gatling Laser Performance ------------- Evolutions (6) 3000 Regions Visited (7) 1400 Robots Destroyed (52) 260 Value Destroyed (2222) 2222 Prototype IDs (2) 40 Alien Tech Used (0) 0 Bonus (7087) 7087 TOTAL SCORE: 14009 Bonus ------- Follower Combat Kills 104 Prayed to X0-1V1 5000 Major X0-1V1 Interference 700 Entered DSFs 500 Registered with UFD 300 Met Optimus in HQ 500 Friendly Fire -17 Cogmind --------- Core Integrity 0/1150 Matter 241/300 Energy 100/100 System Corruption 4% Temperature Cool (18) Movement Core (1350) Ox26 Location -4/Armory Parts ------- > --- POWER (3) -------- (None) > --- PROPULSION (7) --- (None) > --- UTILITY (7) ------ Huge Storage Unit Improved Signal Interpreter Improved Target Analyzer > --- WEAPON (2) ------- (None) > --- INVENTORY (25) --- Light Antimatter Reactor Light Antimatter Reactor Thunder Leg Advanced Heat Sink Advanced Heat Sink Medium Matter Pod (100) Advanced System Shield Advanced Drone Bay (2/2) Quantum Rifle Coil Gun Coil Gun KE Penetrator KE Penetrator KE Penetrator Enhanced Gauss Cannon Enhanced Gauss Cannon Heavy Rocket Launcher Improved Remote Datajack Companion Sword Peak State ------------ > --- POWER ------------ Light Angular Momentum Engine Light Fission Core Neutrino Core > --- PROPULSION ------- Armored Medium Treads Improved Titanium Leg Thunder Leg Thunder Leg Thunder Leg Thunder Leg Myomer Leg > --- UTILITY ---------- Advanced Cooling System Huge Storage Unit Improved Signal Interpreter Core Analyzer X0-1V1's Piety Tracker > --- WEAPON ----------- Hypervelocity Gauss Rifle Hypervelocity Gauss Rifle Hypervelocity Gauss Rifle Hypervelocity Gauss Rifle Companion Sword > --- INVENTORY -------- Reinforced Fission Core Spiked Treads Spiked Treads Armored Treads Armored Treads Armored Medium Treads Armored Medium Treads Flexi-carbon Leg Thunder Leg Thunder Leg Myomer Leg Medium Matter Pod Advanced System Shield Advanced Drone Bay Hypervelocity Gauss Rifle Enhanced Gauss Cannon Enhanced Gauss Cannon Heavy Rocket Launcher Improved Remote Datajack [Rating: 119] Favorites ----------- Power Neutrino Core Engine Ion Engine Power Core Neutrino Core Reactor Light Antimatter Reactor Propulsion Light Treads Treads Light Treads Leg Thunder Leg Wheel Compact Wheel Utility Huge Storage Unit Device X0-1V1's Piety Tracker Storage Huge Storage Unit Processor Improved Signal Interpreter Protection Light Armor Plating Weapon Medium Laser Energy Gun Medium Laser Ballistic Gun Barrage Gun Ballistic Cannon Enhanced Gauss Cannon Slashing Weapon Companion Sword Build | -11 -10 -10 -7 -5 -5 -4 -4 ------- Run | Yrd Mat Sub Scr Fac DSF Fac Arm Slots Evolved 12 | . . . . 10 . 2 . Power 2 | . . . . 1 . 1 . Propulsion 5 | . . . . 4 . 1 . Utility 5 | . . . . 5 . . . Weapon . | . . . . . . . . Parts Attached 81 | 6 9 6 3 8 16 24 9 Power 10 | 1 1 2 . . 1 3 2 Engine 3 | 1 1 . . . . 1 . Core 4 | . . 2 . . 1 1 . Reactor 3 | . . . . . . 1 2 Propulsion 37 | 2 2 3 1 3 7 16 3 Treads 18 | 2 2 2 1 3 1 6 1 Leg 18 | . . . . . 6 10 2 Wheel 1 | . . 1 . . . . . Hover . | . . . . . . . . Flight . | . . . . . . . . Utility 17 | 1 4 . . 5 2 3 2 Device 7 | . 1 . . 2 1 2 1 Storage 3 | 1 2 . . . . . . Processor 3 | . . . . 2 . . 1 Hackware . | . . . . . . . . Protection 4 | . 1 . . 1 1 1 . Artifact . | . . . . . . . . Weapon 17 | 2 2 1 2 . 6 2 2 Energy Gun 1 | . 1 . . . . . . Energy Cannon . | . . . . . . . . Ballistic Gun 13 | 2 1 1 1 . 6 . 2 Ballistic Cannon 2 | . . . . . . 2 . Launcher . | . . . . . . . . Special Weapon . | . . . . . . . . Impact Weapon . | . . . . . . . . Slashing Weapon 1 | . . . 1 . . . . Piercing Weapon . | . . . . . . . . Special Melee Weapon . | . . . . . . . . Unidentified Prototypes 2 | . 1 . 1 . . . . Parts Lost 55 | . 2 1 . . 3 30 19 Power 9 | . 1 1 . . . 4 3 Propulsion 29 | . . . . . 2 18 9 Utility 9 | . . . . . 1 5 3 Weapon 8 | . 1 . . . . 3 4 Highest Loss Streak 23 | . 1 1 . . 3 23 11 To Critical Strikes 1 | . . . . . . 1 . Average Backups 19 | 3 11 23 24 22 22 15 20 Power 1 | . . . 1 2 2 . 1 Propulsion 6 | 2 5 6 7 5 6 4 1 Utility 4 | . 2 6 5 6 5 3 5 Weapon 7 | . 1 9 9 8 8 6 11 Tool/Special . | . . . . . . . . Unused Backups 37 | . 1 6 9 . 7 . 14 Power 2 | . . . . . . . 2 Propulsion 5 | . 1 2 1 . 1 . . Utility 10 | . . 2 2 . 2 . 4 Weapon 19 | . . 2 6 . 4 . 7 Tool/Special 1 | . . . . . . . 1 Average Slot Usage (%) 92 | . 96 100 97 71 83 67 50 Engine 4 | . 14 7 . . . 1 . Core 8 | . . 6 14 5 6 5 . Treads 20 | . 27 24 17 33 23 11 4 Leg 1 | . . . . . 8 14 17 Wheel 5 | . . 3 10 . . . . Device 9 | . . 14 14 11 15 8 5 Storage 12 | . 14 14 14 5 5 4 5 Processor 1 | . . . . 2 10 7 6 Protection 3 | . 10 . . 4 5 2 . Energy Gun 8 | . 9 14 10 . . . . Ballistic Gun 12 | . 18 14 12 . 1 2 2 Slashing Weapon 1 | . . . 2 5 5 1 3 Peak Build Rating 119 | 6 22 32 40 68 97 119 98 Average Rating 33 | 4 7 25 34 58 79 80 67 On Entrance 43 | . 6 22 32 38 68 97 87 Avg Prop Armor Cover (%) 15 | . . 14 16 . . 7 11 Naked Turns . | . . . . . . . . Heaviest Build 142 | 13 98 100 101 108 132 142 119 Greatest Support 138 | 40 40 40 40 128 138 137 123 Greatest Overweight (x) 37 | . 2 6 6 . 1 37 30 Average Overweight (x) 3 | . 1 3 5 . . . 1 Largest Inventory Capacity 25 | 8 25 25 25 25 25 25 25 Average Capacity 23 | 7 21 25 25 25 25 25 25 Most Carried 25 | 6 23 25 25 25 25 25 25 Average Carried 20 | 3 11 24 24 22 24 16 21 Final Capacity 25 | 8 25 25 25 25 25 25 25 Final Carried 25 | 6 23 25 25 24 25 21 20 Class Distribution -------------------- 90% | Mutant 4% | Scavenger-Mutant 3% | Derelict-Mutant Dominant Class ---------------- Mutant | -10/Materials Mutant | -10/Subcaves Mutant | -7/Scraptown Derelict-Mutant | -5/Factory Mutant | -5/DSF Mutant | -4/Factory Scavenger-Mutant | -4/Armory Resources | -11 -10 -10 -7 -5 -5 -4 -4 ----------- Run | Yrd Mat Sub Scr Fac DSF Fac Arm Matter Collected 2312 | 216 505 174 190 . 321 826 80 Remotely . | . . . . . . . . Salvage Created 2786 | . 643 233 . . 449 972 489 Parts 140 | . 47 4 . . 30 34 25 Haulers Intercepted 1 | . 1 . . . . . . Recyclers Shooed 5 | . 1 . . . . 4 . Parts Field Recycled . | . . . . . . . . Retrieved Matter . | . . . . . . . . Parts Self-Destructed 12 | . . 12 . . . . . Prevented . | . . . . . . . . Parts Restored . | . . . . . . . . Kills | -11 -10 -10 -7 -5 -5 -4 -4 ------- Run | Yrd Mat Sub Scr Fac DSF Fac Arm Combat Hostiles Destroyed 44 | . 17 5 . . 6 10 6 Melee 7 | . . . . . 2 2 3 Guns 34 | . 17 5 . . 4 5 3 Cannons 3 | . . . . . . 3 . Classes Destroyed 11 | . 6 1 . . 3 1 . Worker 1 | . 1 . . . . . . Hauler 1 | . 1 . . . . . . Recycler 4 | . 1 . . . . 3 . Watcher 2 | . 1 . . . . 1 . Swarmer 10 | . 9 1 . . . . . Grunt 16 | . 8 . . . 3 2 3 Specialist 4 | . . . . . 1 . 3 Hunter 5 | . . . . . 1 4 . Programmer 4 | . . . . . . 4 . Heavy 1 | . . . . . 1 . . Subdweller 4 | . . 4 . . . . . Best Kill Streak 5 | . 5 3 . . 4 3 3 Combat Bots Only 4 | . 4 3 . . 4 3 3 Max Kills in Single Turn 1 | . 1 1 . . 1 1 1 Gunslinging . | . . . . . . . . Exploded . | . . . . . . . . Melee 1 | . . . . . 1 1 1 Uniques/NPCs Destroyed . | . . . . . . . . Combat | -11 -10 -10 -7 -5 -5 -4 -4 -------- Run | Yrd Mat Sub Scr Fac DSF Fac Arm Hostile Shots Fired 942 | . 86 31 . . 48 504 273 Missed 295 | . 12 13 . . 11 170 89 Hits 647 | . 74 18 . . 37 334 184 Melee 1 | . . . . . . . 1 Projectile 646 | . 74 18 . . 37 334 183 Critical Strikes 16 | . . 1 . . 3 10 2 Part Disruptions 2 | . . . . . . 2 . Damage Taken 11012 | . 728 350 . . 1005 6068 2861 Core 1523 | . 138 54 . . 177 666 488 Absorbed by Shields . | . . . . . . . . Regen/Repaired (Parts) 528 | . 220 . 308 . . . . Core Remaining (%) 68 | 100 . . 23 . 82 . . Volleys Fired 133 | . 68 16 . . 5 38 6 Largest 4 | . 2 2 . . 4 4 2 Hottest 132 | . 70 78 . . 132 132 70 Shots Fired 275 | . 138 33 . . 20 72 12 Gun 241 | . 138 33 . . 20 38 12 Cannon 34 | . . . . . . 34 . Launcher . | . . . . . . . . Special . | . . . . . . . . Kinetic 248 | . 127 17 . . 20 72 12 Thermal 27 | . 11 16 . . . . . Explosive . | . . . . . . . . Electromagnetic . | . . . . . . . . Robot Hit Streak 17 | . 9 17 . . 5 9 7 Robot Miss Streak 5 | . 5 3 . . 1 2 1 Penetration Max 1 | . . . . . . 1 1 Secondary Targets 6 | . 1 . . . 1 2 2 Max Gunslinging Chain 1 | . 1 . . . 1 1 1 Shots Hit Robots 225 | . 86 23 . . 21 71 24 Core Hits 100 | . 35 10 . . 13 28 14 Critical Kills 11 | . 1 . . . 4 5 1 Critical Parts Destroyed 10 | . . . . . 1 8 1 Critical Strikes 28 | . 1 . . . 7 18 2 Destroy 21 | . 1 . . . 5 13 2 Blast 5 | . . . . . . 5 . Melee Attacks 62 | . . . . 1 13 27 21 Impact . | . . . . . . . . Slashing 62 | . . . . 1 13 27 21 Piercing . | . . . . . . . . Sneak Attacks 1 | . . . . . 1 . . Combat Hostiles . | . . . . . . . . Follow-up Attacks 1 | . . . . . . . 1 Damage Inflicted 4031 | . 878 325 . . 329 1718 781 Guns 1532 | . 873 325 . . 75 145 114 Cannons 882 | . . . . . . 809 73 Explosions . | . . . . . . . . Melee 1612 | . . . . . 254 764 594 Ramming 5 | . 5 . . . . . . Kinetic 2176 | . 774 186 . . 75 954 187 Thermal 238 | . 99 139 . . . . . Explosive . | . . . . . . . . Electromagnetic . | . . . . . . . . Impact . | . . . . . . . . Slashing 1612 | . . . . . 254 764 594 Piercing . | . . . . . . . . Highest Corruption 6 | . 6 6 . . . 4 4 Average Corruption 4 | . 4 6 . . . 2 4 Corruption Purged . | . . . . . . . . Corruption Blocked . | . . . . . . . . Effects 56 | . 32 16 . . . 6 2 Message Errors 14 | . 9 4 . . . 1 . Matter Fused 13 | . 8 2 . . . 2 1 Heat Flow Errors 7 | . 5 . . . . 2 . Energy Discharges 8 | . 3 4 . . . . 1 Parts Rejected 2 | . 1 . . . . 1 . Data Loss (minor) 3 | . 1 2 . . . . . Data Loss (major) 1 | . 1 . . . . . . Misfires 5 | . 3 2 . . . . . Alerts 1 | . . 1 . . . . . Weapon Failures 2 | . 1 1 . . . . . Overload Shots . | . . . . . . . . Overflow Damage 39 | . . . . . . 13 26 Projectiles 13 | . . . . . . 13 . Explosions . | . . . . . . . . Melee 26 | . . . . . . . 26 Knockbacks 5 | . . . . . . 5 . Impact . | . . . . . . . . Kinetic 5 | . . . . . . 5 . Secondary . | . . . . . . . . Self-Inflicted Damage . | . . . . . . . . Shots . | . . . . . . . . Rammed 1 | . 1 . . . . . . Targets Rammed 2 | . 2 . . . . . . Kicked . | . . . . . . . . Crushed 1 | . 1 . . . . . . Highest Temperature 923 | . 276 15 . . 923 336 39 Average Temperature 121 | . 79 4 . . 295 124 15 Received Heat Transfer 1580 | . 249 54 . . 9 502 766 Effects 19 | . 1 . . . 17 1 . Shutdowns 4 | . . . . . 4 . . Energy Bleed 3 | . 1 . . . 2 . . Interference 7 | . . . . . 6 1 . Matter Decay 1 | . . . . . 1 . . Short Circuit 2 | . . . . . 2 . . Damage (minor) 2 | . . . . . 2 . . Siege Activations . | . . . . . . . . Martial Activations . | . . . . . . . . Shielding Activations . | . . . . . . . . Robots Disrupted . | . . . . . . . . Combat Hostiles . | . . . . . . . . Robots Corrupted . | . . . . . . . . Combat Hostiles . | . . . . . . . . Parts Fried . | . . . . . . . . Impact Corruptions . | . . . . . . . . Robots Melted . | . . . . . . . . Combat Hostiles . | . . . . . . . . Parts Melted 1 | . 1 . . . . . . Heat Transferred 703 | . 296 407 . . . . . Parts Sabotaged 2 | . . . . . . . 2 Parts Stolen . | . . . . . . . . Parts Stripped . | . . . . . . . . Power Chain Reactions . | . . . . . . . . Alert | -11 -10 -10 -7 -5 -5 -4 -4 ------- Run | Yrd Mat Sub Scr Fac DSF Fac Arm Maximum Alert Level 1 | . 1 . . . . . . Low Security (%) 94 | 100 91 . . 100 100 100 100 Level 1 5 | . 8 . . . . . . Level 2 . | . . . . . . . . Level 3 . | . . . . . . . . Level 4 . | . . . . . . . . Level 5 . | . . . . . . . . High Security . | . . . . . . . . Max Security . | . . . . . . . . Sterilizations 1 | . . . . . 1 . . Peak Influence 237 | . 237 . . 15 167 137 55 Initial 87 | . . . . . . 87 8 Average 65 | . 73 . . 2 110 47 25 Influence Increases 1340 | . 503 50 . 15 257 340 175 Destroy 0b10 Robot/C 860 | . 340 20 . . 180 200 120 Destroy 0b10 Robot/NC 40 | . 20 . . . . 20 . Destroy Leader 186 | . 64 . . . 30 62 30 Allied During Kill 20 | . . . . . 20 . . Successful Hack 3 | . 3 . . . . . . Disable Machine 30 | . . . . 15 15 . . Destroy Structure 51 | . 1 . . . 12 28 10 Lose Combat Pursuer 150 | . 75 30 . . . 30 15 Influence Decreases 1325 | . 503 36 14 15 90 489 178 Entered New Map 104 | . . . 14 . . 80 10 Time Decay 827 | . 483 36 . 15 . 223 70 Lost Part 334 | . 20 . . . 30 186 98 Lost Ally 60 | . . . . . 60 . . Squads Dispatched 8 | . 2 . . . 2 2 2 Investigation . | . . . . . . . . Extermination 1 | . . . . . . 1 . Reinforcement 7 | . 2 . . . 2 1 2 Assault . | . . . . . . . . Garrison . | . . . . . . . . Intercept . | . . . . . . . . Searches Triggered . | . . . . . . . . Construction Impeded 1 | . . . . . . 1 . Haulers Reinforced . | . . . . . . . . Active Scanning Responses . | . . . . . . . . Cargo Convoy Interrupts . | . . . . . . . . Stealth | -11 -10 -10 -7 -5 -5 -4 -4 --------- Run | Yrd Mat Sub Scr Fac DSF Fac Arm Distress Signals 5 | . 3 . . . . 2 . Communications Jammed . | . . . . . . . . Distress Signals . | . . . . . . . . Times Spotted 87 | . 34 14 . . 5 24 10 Peak Tracking Total 11 | . 5 8 . . 3 11 6 Tactical Retreats 7 | . 4 1 . . . 1 1 Traps | -11 -10 -10 -7 -5 -5 -4 -4 ------- Run | Yrd Mat Sub Scr Fac DSF Fac Arm Traps Triggered 4 | . 4 . . . . . . Indirectly . | . . . . . . . . Trap Hack Attempts . | . . . . . . . . Triggered . | . . . . . . . . Disarmed . | . . . . . . . . Reprogrammed . | . . . . . . . . Reused . | . . . . . . . . Traps Extracted . | . . . . . . . . Installed . | . . . . . . . . Triggered . | . . . . . . . . Machines | -11 -10 -10 -7 -5 -5 -4 -4 ---------- Run | Yrd Mat Sub Scr Fac DSF Fac Arm Machines Disabled 2 | . . . . 1 1 . . Max in Single Turn 1 | . . . . 1 . . . Machines Repaired . | . . . . . . . . Machines Dismantled . | . . . . . . . . Machines Sabotaged . | . . . . . . . . Overloaded Fab Kills . | . . . . . . . . Hacking | -11 -10 -10 -7 -5 -5 -4 -4 --------- Run | Yrd Mat Sub Scr Fac DSF Fac Arm Machines Accessed 6 | . 1 . 2 1 . 2 . Terminals 3 | . . . . 1 . 2 . Fabricators . | . . . . . . . . Repair Stations 1 | . 1 . . . . . . Recycling Units . | . . . . . . . . Scanalyzers . | . . . . . . . . Garrison Access . | . . . . . . . . Total Hacks 14 | . 5 . 5 1 . 3 . Successful 11 | . 4 . 5 1 . 1 . Failed 3 | . 1 . . . . 2 . Catastrophic 1 | . . . . . . 1 . Database Lockouts . | . . . . . . . . Manual 1 | . 1 . . . . . . Terminals 4 | . . . . 1 . 3 . Fabricators . | . . . . . . . . Repair Stations 5 | . 5 . . . . . . Recycling Units . | . . . . . . . . Scanalyzers . | . . . . . . . . Garrison Access . | . . . . . . . . Terminal Hacks 7 | . . . 5 1 . 1 . Record 4 | . . . 4 . . . . Open Door 1 | . . . 1 . . . . Open DSF 2 | . . . . 1 . 1 . Fabricator Hacks . | . . . . . . . . Repair Station Hacks 4 | . 4 . . . . . . Scan Component 2 | . 2 . . . . . . Repair 2 | . 2 . . . . . . Recycling Unit Hacks . | . . . . . . . . Scanalyzer . | . . . . . . . . Garrison Access Hacks . | . . . . . . . . Unauthorized Hacks . | . . . . . . . . Terminals . | . . . . . . . . Fabricators . | . . . . . . . . Repair Stations . | . . . . . . . . Recycling Units . | . . . . . . . . Scanalyzers . | . . . . . . . . Garrison Access . | . . . . . . . . Data Cores Recovered . | . . . . . . . . Used . | . . . . . . . . Hacking Detections 2 | . 1 . . . . 1 . Full Trace Events . | . . . . . . . . Feedback Events . | . . . . . . . . Feedback Blocked . | . . . . . . . . Robot Schematics Acquired . | . . . . . . . . Robots Built . | . . . . . . . . Authchips . | . . . . . . . . Time . | . . . . . . . . Total Robot Build Rating . | . . . . . . . . Part Schematics Acquired . | . . . . . . . . Parts Built . | . . . . . . . . Authchips . | . . . . . . . . Time . | . . . . . . . . Total Part Build Rating . | . . . . . . . . Part Studies Acquired . | . . . . . . . . Parts Repaired 2 | . 2 . . . . . . Time 52 | . 52 . . . . . . Parts Recycled . | . . . . . . . . Recycled Matter . | . . . . . . . . Retrieved Matter . | . . . . . . . . Retrieved Components . | . . . . . . . . Parts Scanalyzed . | . . . . . . . . Part Schematics Acquired . | . . . . . . . . Parts Damaged . | . . . . . . . . Bothacking | -11 -10 -10 -7 -5 -5 -4 -4 ------------ Run | Yrd Mat Sub Scr Fac DSF Fac Arm Used RIF Installer . | . . . . . . . . Robots Hacked . | . . . . . . . . Non-combat . | . . . . . . . . Combat . | . . . . . . . . Robot Hacks Applied . | . . . . . . . . Relay Couplers Released . | . . . . . . . . Fabnet Peak Effective % . | . . . . . . . . Robots Rewired . | . . . . . . . . Allies Hacked . | . . . . . . . . Hacks Repelled . | . . . . . . . . Allies | -11 -10 -10 -7 -5 -5 -4 -4 -------- Run | Yrd Mat Sub Scr Fac DSF Fac Arm Total Allies 3 | . . . . 3 . . . Largest Group 3 | . . . . 3 3 . . Highest-Rated Group 126 | . . . . 126 126 . . Highest-Rated Ally 42 | . . . . 42 42 . . Initial UFD Resources 41 | . . . . 39 39 41 41 Total Orders . | . . . . . . . . Ally Attacks 10 | . . . . . 10 . . Total Damage 351 | . . . . . 351 . . Kills 3 | . . . . . 3 . . Allies Corrupted . | . . . . . . . . Allies Melted . | . . . . . . . . X0-1V1 Amusement Gains 138 | . 13 20 . . 5 20 80 Good Acts 7 | . . 2 . 1 1 1 2 Bad Acts 6 | . . 1 . . . 3 2 Intel | -11 -10 -10 -7 -5 -5 -4 -4 ------- Run | Yrd Mat Sub Scr Fac DSF Fac Arm Active Infowar (turns) 546 | . . . . 83 340 123 . Sensors 276 | . . . . 46 230 . . Jamming 546 | . . . . 83 340 123 . Robot Analysis Total . | . . . . . . . . Derelict Logs Recovered 2 | . . 1 1 . . . . Drone Launches . | . . . . . . . . Drone Recoveries . | . . . . . . . . Exploration | -11 -10 -10 -7 -5 -5 -4 -4 ------------- Run | Yrd Mat Sub Scr Fac DSF Fac Arm Turns Passed 7346 | 81 1843 538 3689 123 341 524 207 Spaces Moved 2859 | 49 540 168 1684 64 157 136 61 Core 17 | 13 . . . . . 1 3 Treads 1169 | 36 540 97 293 64 84 55 . Legs 211 | . . . . . 73 80 58 Wheels 1462 | . . 71 1391 . . . . Hover . | . . . . . . . . Flight . | . . . . . . . . Fastest Speed 50 | 50 160 175 190 163 120 118 117 Average Speed 224 | 130 285 264 216 163 146 185 188 Slowest Speed 1900 | 160 320 320 345 163 255 1900 1550 Overloaded Moves . | . . . . . . . . Propulsion Burnouts . | . . . . . . . . Robots Hopped . | . . . . . . . . Potential Cave-ins . | . . . . . . . . Cave-ins Triggered . | . . . . . . . . Exploration Rate (%) 35 | 4 79 14 90 2 90 5 3 Regions Visited 7 Branch Regions 3 Pre-discovered Areas 1 | . . 1 . . . . . Known Exits Taken 2 | . . . . 1 . 1 . Unknown Exits Taken 4 | 1 1 1 1 . . . . Scrap Searched 13 | . . 3 10 . . . . Spaces Dug 5 | . . . . . . . 5 Terrain Destroyed 20 | . . . . . 1 14 5 Melee 5 | . . . . . . . 5 Projectile 12 | . . . . . . 12 . AOE . | . . . . . . . . Terrain Rammed . | . . . . . . . . Walls Destroyed . | . . . . . . . . Machines Disabled . | . . . . . . . . Actions | -11 -10 -10 -7 -5 -5 -4 -4 --------- Run | Yrd Mat Sub Scr Fac DSF Fac Arm Total 3477 | 66 715 237 1727 80 242 299 111 Wait 138 | . 66 29 5 . 9 28 1 Move 2852 | 48 539 167 1683 63 156 135 61 Hop . | . . . . . . . . Pick Up 124 | 12 24 10 18 6 16 28 10 Fast Attach 5 | . 1 . . 1 3 . . Attach 76 | 6 5 1 . 8 11 33 12 Detach 11 | . 1 . . . 8 1 1 Swap 30 | . 5 5 4 1 7 8 . Drop 44 | . 4 9 17 . 13 1 . Fire 133 | . 68 16 . . 5 38 6 Melee 61 | . . . . 1 13 27 20 Ram . | . . . . . . . . Kick . | . . . . . . . . Crush 2 | . 2 . . . . . . Escape Stasis 1 | . . . . . 1 . . Rewire . | . . . . . . . . Trap . | . . . . . . . . Miscellaneous . | . . . . . . . . Route ------- -11/Scrapyard -10/Materials (discovered 6 exits: [*Mat x3] / [*Min x2] / [*Sub]) -10/Subcaves -7/Scraptown (discovered 2 exits: *Fac x2) -5/Factory -5/DSF -4/Factory -4/Armory History --------- Turn | Location | Event 5 | -11/Scrapyard | Discovered new exit (range 15) 82 | -11/Scrapyard | Entered Materials 314 | -10/Materials | Build established: Mutant 321 | -10/Materials | Discovered new exit (range 14) 559 | -10/Materials | Discovered new exit (range 16) 1080 | -10/Materials | Discovered new exit (range 5) 1154 | -10/Materials | Discovered new exit (range 5) 1358 | -10/Materials | Core integrity fell below 50% 1424 | -10/Materials | Repaired Lgt. Treads 1452 | -10/Materials | Repaired Lgt. Treads 1538 | -10/Materials | Discovered new exit (range 8) 1897 | -10/Materials | Discovered new exit (range 7) 1916 | -10/Materials | Prayed at D.C.S.S. Altar Unit 1925 | -10/Materials | Entered Subcaves 1926 | -10/Subcaves | Approached by a straggling Scientist 2171 | -10/Subcaves | Ambushed by swarm of Subdwellers 2225 | -10/Subcaves | Lost 3 allies 2463 | -10/Subcaves | Entered Scraptown 2463 | -7/Scraptown | System corruption cleaned by C-Scrubber 2837 | -7/Scraptown | Heard Great Nut preacher, LISTEN AND RECITE! 2953 | -7/Scraptown | Scanned Subdweller tech in exchange for log data 2959 | -7/Scraptown | Learned Research emergency access door positions 3012 | -7/Scraptown | Visited Symbiants 3054 | -7/Scraptown | Visited CR-KLE's Repair Center 3403 | -7/Scraptown | Visited TADAMA 3420 | -7/Scraptown | Visited Red Mages 3548 | -7/Scraptown | Visited Comm Corps 3635 | -7/Scraptown | Visited Shadow of the Wyrm 3662 | -7/Scraptown | Visited Bundlers 3982 | -7/Scraptown | Visited UFD Registry 3982 | -7/Scraptown | Registered with UFD as "Cargomachine" 4026 | -7/Scraptown | Visited Sword Containment 4098 | -7/Scraptown | Visited Observation Area 4178 | -7/Scraptown | Visited Abandonware Association 4203 | -7/Scraptown | Learned abandonware demo "REPAIR.EXE" 4203 | -7/Scraptown | Learned abandonware demo "REBOOT5.EXE" 4252 | -7/Scraptown | Visited Chapter 10 4288 | -7/Scraptown | Visited Science Testing Area 4309 | -7/Scraptown | Visited DA-N13 Charitable Foundation 4330 | -7/Scraptown | Found DCF Scrap (27 items) 4392 | -7/Scraptown | Visited Scrapoid Pod Storage 4530 | -7/Scraptown | Delivered Scrap Shield to a Scientist 4932 | -7/Scraptown | Visited Derelict Rescue Squad 5330 | -7/Scraptown | CR-KLE repaired 5 parts 5498 | -7/Scraptown | Found Prototype Slashing Weapon 5499 | -7/Scraptown | Identified Companion Sword 5734 | -7/Scraptown | Discovered new exit (range 11) 6032 | -7/Scraptown | Met Optimus 6032 | -7/Scraptown | Accepted into 0bPrime 6139 | -7/Scraptown | Discovered new exit (range 5) 6152 | -7/Scraptown | Entered Factory 6152 | -5/Factory | Evolved 10 slots: Power x1, Propulsion x4, Utility x5 6196 | -5/Factory | X0-1V1 sent you to a vault 6273 | -5/Factory | Identified exit to DSF 6275 | -5/Factory | Entered DSF 6275 | -5/DSF | Accompanied by 3 allies 6345 | -5/DSF | Additional patrols routed to DSF 6406 | -5/DSF | Lost 3 allies 6427 | -5/DSF | Weapon slot count temporarily expanded by X0-1V1 (+3) 6446 | -5/DSF | Lost 3 parts (2n1u) 6465 | -5/DSF | Sterilization system engaged 6485 | -5/DSF | Ambient heat levels rising (+10) 6500 | -5/DSF | Ambient heat levels rising (+10) 6515 | -5/DSF | Ambient heat levels rising (+10) 6530 | -5/DSF | Ambient heat levels rising (+10) 6545 | -5/DSF | Ambient heat levels rising (+10) 6560 | -5/DSF | Ambient heat levels rising (+10) 6575 | -5/DSF | Ambient heat levels rising (+10) 6590 | -5/DSF | Ambient heat levels rising (+10) 6599 | -5/DSF | Discovered new exit (range 14) 6605 | -5/DSF | Ambient heat levels rising (+10) 6614 | -5/DSF | Identified exit to Factory 6616 | -5/DSF | Entered Factory 6616 | -4/Factory | Evolved 2 slots: Power x1, Propulsion x1 6706 | -4/Factory | X0-1V1 whisked you away to safety 6808 | -4/Factory | Discovered new exit (range 15) 6862 | -4/Factory | Lost 23 parts (3p16n3u1w) 6872 | -4/Factory | Core integrity fell below 50% 6911 | -4/Factory | Lost 3 parts (1u2w) 7085 | -4/Factory | X0-1V1 upgraded hostiles (x1) 7119 | -4/Factory | Lost 4 parts (1p2n1u) 7137 | -4/Factory | Identified exit to Armory 7140 | -4/Factory | Entered Armory 7143 | -4/Armory | X0-1V1 sent you into danger 7209 | -4/Armory | Lost 6 parts (1p4n1u) 7294 | -4/Armory | Core integrity fell below 20% 7324 | -4/Armory | Lost 11 parts (2p5n2u2w) 7347 | -4/Armory | Destroyed by X-77 Beamer with Gatling Laser Last Messages --------------- HV Slug penetrates H-71 Marshal. Myomer Leg destroyed. Hyp. Gauss Rifle destroyed. H-71 Marshal calls for reinforcements. ALERT: Hostile activity reported, dispatching reinforcements to area. Hyp. Gauss Rifle destroyed. X0-1V1's Piety Tracker suddenly appears amidst shimmering waves of color. X0-1V1 uses you as a vessel of destruction. X-77 Beamer destroyed. Switching to secondary target: H-71 Marshal. X0-1V1 stares into the ether. X-77 Beamer form shifts and blurs. H-71 Marshal form shifts and blurs. Railgun destroyed. Acquired 10 matter. System corrupted: Matter fused (-9). Railgun destroyed. X0-1V1 howls with laughter! Map ----- +----------------------------------------------------+ | ?????????????????????????????????????????????????? | | ?????????????????????????????????????????????????? | | ?????????????????????????????????????????????????? | | ?????????????????????????????????????????????????? | | ?????????????????????????????????????????????????? | | ?????????????????????????????????????????????????? | | ?????????????????????????????????????????????????? | | ?????????????????????????????????????????????????? | | ?????????????????????????????????????????????????? | | ????????????????#????????????????????????????????? | | ????????????????# ???????????????????????????????? | | ????????????????# ???????????????????????????????? | | ??????????H?????# ??????????????????????????????? | | ????????????????# ??????????????????????????????? | | ???????????????## #?????????##??????????????????? | | ?????????????" # #####??### ####+######????? | | ???????????????/ ! #????? | | ???????????????# #????? | | ????????????????? %;##+##### ####+######????? | | ??????????????????#;;/! !*[!#????????????????????? | | ???????????????????#=%!!"%[ #????????????????????? | | ???????????????????##==="= #????????????????????? | | ????????????????????#%%!%% #????????????????????? | | ????????????????????#]""]* #????????????????????? | | ????????????????????# """x #????????????????????? | | ????????????????????# """@ #????????????????????? | | ????????????????????# """* [#????????????????????? | | ????????????????????#!%!% [##???????????????????? | | ????????????????????# [! !%#???????????????????? | | ????????????????????# %[ !##???????????????????? | | ????????????????????# [ #????????????????????? | | ????????????????????# #????????????????????? | | ????????????????????# #????????????????????? | | ???????????????????## #????????????????????? | | ???????????????????#; " F" #????????????????????? | | ???????????????????## " "" #????????????????????? | | ???????????????????#;#;######????????????????????? | | ???????????????????#####?????????????????????????? | | ?????????????????????????????????????????????????? | | ?????????????????????????????????????????????????? | | ?????????????????????????????????????????????????? | | ?????????????????????????????????????????????????? | | ?????????????????????????????????????????????????? | | ?????????????????????????????????????????????????? | | ?????????????????????????????????????????????????? | | ?????????????????????????????????????????????????? | | ?????????????????????????????????????????????????? | | ?????????????????????????????????????????????????? | | ?????????????????????????????????????????????????? | | ?????????????????????????????????????????????????? | +----------------------------------------------------+ Best States ------------- Heat Dissipation 74 Energy Generation 45 Energy Capacity 430 Matter Stores 300 Matter Capacity 300 Sight Range 16 Robot Scan Range 15 Terrain Scan Density 10 Jamming Range 12 Armor Coverage 225 Phase Shifting 10 Evasion (%) 70 Target Analysis 6 Core Analysis 6 Recoil Reduction 6 Item Schematics ----------------- None Robot Schematics ------------------ None Fabricated ------------ Nothing Repaired ---------- Lgt. Treads | 20% | -10/Materials Lgt. Treads | 22% | -10/Materials Studied --------- None Alien Tech Used ----------------- None Achievements -------------- None Challenges ------------ None Game ------ Seed ResetTowerExpander Manual? 0 Play Time 00:44:51 Cumulative 448.5 hours Start 2026.06.25 @ 21:04:59 End 2026.06.25 @ 21:50:08 Sessions 1 Manual Loads 0 Difficulty Rogue Special Mode None Game No. 285 Rogue 285 Adventurer 0 Explorer 0 Win Type - Total 32 Types 16/1/7/2/1/1/1/1/0/2 Lore% 95 Gallery% 89 Achievement% 80 Wizard Run 0 Options --------- Layout 1 ASCII 0 Keyboard 0 Movement Numpad Keybinds 0 Fullscreen 1 Font 24/Proggy Map View 50x35 Zoom Use 0% Tactical HUD 0 Map Filters NONE Filters NONE Steam 1 RUN: 5925af37-4695-425a-9d15-560544b3fef8